[Event "*** Titled Tuesday Blitz"]
[Site "Chess.com"]
[Date "2021.04.20"]
[Round "5"]
[White "MrChampion_Coach"]
[Black "Mr_Sinigami"]
[Result "0-1"]
[WhiteElo "2409"]
[BlackElo "2600"]
[TimeControl "180+1"]
[EndTime "10:55:29 PDT"]
[Termination "Mr_Sinigami won by checkmate"]

1. d4 {[%clk 0:03:00.9]} 1... c5 {[%clk 0:02:57.5]} 2. d5 {[%clk 0:03:00.4]}
2... e5 {[%clk 0:02:57.4]} 3. Nc3 {[%clk 0:02:59.9]} 3... d6 {[%clk 0:02:57.4]}
4. e4 {[%clk 0:02:58.3]} 4... Be7 {[%clk 0:02:56.1]} 5. Bb5+ {[%clk 0:02:17.3]}
5... Nd7 {[%clk 0:02:52.5]} 6. Qg4 {[%clk 0:02:12.5]} 6... Bf6 {[%clk
0:02:28.8]} 7. a4 {[%clk 0:02:08.1]} 7... a6 {[%clk 0:02:27.1]} 8. Bd3 {[%clk
0:01:57.4]} 8... Qc7 {[%clk 0:02:21.2]} 9. Qe2 {[%clk 0:01:55.2]} 9... Ne7
{[%clk 0:02:13.6]} 10. h4 {[%clk 0:01:52.1]} 10... h6 {[%clk 0:01:36.8]} 11. Be3
{[%clk 0:01:48.1]} 11... g6 {[%clk 0:01:13.5]} 12. g3 {[%clk 0:01:30.5]} 12...
Bg7 {[%clk 0:01:09.8]} 13. Nh3 {[%clk 0:01:29.9]} 13... Nf6 {[%clk 0:01:08.3]}
14. f3 {[%clk 0:01:26.6]} 14... Nh5 {[%clk 0:01:01.4]} 15. Qf2 {[%clk
0:01:12.7]} 15... Bd7 {[%clk 0:00:55.7]} 16. g4 {[%clk 0:01:12.1]} 16... Nf4
{[%clk 0:00:28.3]} 17. Nxf4 {[%clk 0:01:09]} 17... exf4 {[%clk 0:00:29.2]} 18.
Bxf4 {[%clk 0:01:09.7]} 18... O-O-O {[%clk 0:00:27.1]} 19. Nd1 {[%clk
0:00:35.9]} 19... f5 {[%clk 0:00:25.8]} 20. gxf5 {[%clk 0:00:29]} 20... gxf5
{[%clk 0:00:25.8]} 21. Qg3 {[%clk 0:00:29.3]} 21... Be5 {[%clk 0:00:25]} 22.
Bxe5 {[%clk 0:00:21.5]} 22... dxe5 {[%clk 0:00:25.9]} 23. Nc3 {[%clk 0:00:21]}
23... Rhg8 {[%clk 0:00:24.5]} 24. Qf2 {[%clk 0:00:19.7]} 24... Ng6 {[%clk
0:00:23.2]} 25. O-O-O {[%clk 0:00:19.3]} 25... Nf4 {[%clk 0:00:22.3]} 26. Bc4
{[%clk 0:00:17.3]} 26... Rg2 {[%clk 0:00:19.3]} 27. Qe3 {[%clk 0:00:17]} 27...
fxe4 {[%clk 0:00:18.7]} 28. Nxe4 {[%clk 0:00:15.9]} 28... Bf5 {[%clk 0:00:18.8]}
29. d6 {[%clk 0:00:15.9]} 29... Qc6 {[%clk 0:00:16]} 30. Rhf1 {[%clk 0:00:07.3]}
30... Qxa4 {[%clk 0:00:13.6]} 31. Ba2 {[%clk 0:00:01]} 31... Qxa2 {[%clk
0:00:11.8]} 32. Qa3 {[%clk 0:00:01.9]} 32... Qxa3 {[%clk 0:00:11.1]} 33. bxa3
{[%clk 0:00:02.8]} 33... Bxe4 {[%clk 0:00:11]} 34. fxe4 {[%clk 0:00:03.7]} 34...
Kd7 {[%clk 0:00:10.8]} 35. Rf3 {[%clk 0:00:04.6]} 35... Rc8 {[%clk 0:00:10.1]}
36. Kb2 {[%clk 0:00:05.1]} 36... Rc6 {[%clk 0:00:10.1]} 37. h5 {[%clk 0:00:04]}
37... Rxd6 {[%clk 0:00:09.6]} 38. Rc1 {[%clk 0:00:04.3]} 38... Rd3 {[%clk
0:00:09.1]} 39. Ka2 {[%clk 0:00:02.5]} 39... Rxf3 {[%clk 0:00:09]} 40. Rd1+
{[%clk 0:00:03.4]} 40... Kc6 {[%clk 0:00:09]} 41. Rd8 {[%clk 0:00:03.7]} 41...
Rxc2+ {[%clk 0:00:08.3]} 42. Kb1 {[%clk 0:00:04.6]} 42... Rg2 {[%clk 0:00:08.3]}
43. Rc8+ {[%clk 0:00:05.5]} 43... Kd7 {[%clk 0:00:08.3]} 44. Rxc5 {[%clk
0:00:05.3]} 44... Nd3 {[%clk 0:00:08.2]} 45. Rc1 {[%clk 0:00:06.2]} 45... Nxc1
{[%clk 0:00:07.9]} 46. a4 {[%clk 0:00:05.9]} 46... Nb3 {[%clk 0:00:07.6]} 47. a5
{[%clk 0:00:06.8]} 47... Rf1# {[%clk 0:00:07.5]} 0-1

[Event "*** Titled Tuesday Blitz"]
[Site "Chess.com"]
[Date "2021.04.20"]
[Round "5"]
[White "queen_iryna"]
[Black "m_ezat"]
[Result "1-0"]
[WhiteElo "2360"]
[BlackElo "2528"]
[TimeControl "180+1"]
[EndTime "10:55:30 PDT"]
[Termination "queen_iryna won by resignation"]

1. e4 {[%clk 0:03:00.9]} 1... c6 {[%clk 0:02:55]} 2. d4 {[%clk 0:03:00.6]} 2...
d5 {[%clk 0:02:55.9]} 3. e5 {[%clk 0:03:00.7]} 3... c5 {[%clk 0:02:55.5]} 4.
dxc5 {[%clk 0:03:00.3]} 4... e6 {[%clk 0:02:52.9]} 5. a3 {[%clk 0:02:59.8]} 5...
Nd7 {[%clk 0:02:49.2]} 6. Nf3 {[%clk 0:02:37]} 6... Ne7 {[%clk 0:02:45.9]} 7.
Bd3 {[%clk 0:02:34.3]} 7... Nc6 {[%clk 0:02:45]} 8. Qe2 {[%clk 0:02:31.1]} 8...
Nxc5 {[%clk 0:02:43.8]} 9. O-O {[%clk 0:02:28.9]} 9... Be7 {[%clk 0:02:43.2]}
10. b4 {[%clk 0:02:27.7]} 10... Nxd3 {[%clk 0:02:42]} 11. Qxd3 {[%clk
0:02:24.4]} 11... a5 {[%clk 0:02:41.4]} 12. b5 {[%clk 0:02:22.6]} 12... Nb8
{[%clk 0:02:41]} 13. Bb2 {[%clk 0:02:17.4]} 13... Nd7 {[%clk 0:02:23.4]} 14.
Nbd2 {[%clk 0:02:17.1]} 14... Nc5 {[%clk 0:02:21.7]} 15. Qe2 {[%clk 0:02:14.9]}
15... Na4 {[%clk 0:02:21.4]} 16. Bd4 {[%clk 0:02:10.8]} 16... Bd7 {[%clk
0:02:21.9]} 17. c4 {[%clk 0:02:06]} 17... dxc4 {[%clk 0:02:17.1]} 18. Qxc4
{[%clk 0:02:01.1]} 18... Nb6 {[%clk 0:02:14.2]} 19. Qe2 {[%clk 0:01:51.4]} 19...
Nd5 {[%clk 0:02:13.5]} 20. Ne4 {[%clk 0:01:46.2]} 20... O-O {[%clk 0:02:10.6]}
21. Rfd1 {[%clk 0:01:36.4]} 21... a4 {[%clk 0:02:10.5]} 22. Bc5 {[%clk
0:01:25.7]} 22... Ra5 {[%clk 0:02:04.8]} 23. Nd6 {[%clk 0:00:46.2]} 23... Nc3
{[%clk 0:01:48.5]} 24. Qd2 {[%clk 0:00:36.5]} 24... Bxd6 {[%clk 0:01:43]} 25.
Bxd6 {[%clk 0:00:34.7]} 25... Nxd1 {[%clk 0:01:40.2]} 26. Bxf8 {[%clk
0:00:34.4]} 26... Qxf8 {[%clk 0:01:33.4]} 27. Qxa5 {[%clk 0:00:33.3]} 27... Nb2
{[%clk 0:01:27.9]} 28. Qd2 {[%clk 0:00:33.1]} 28... Bxb5 {[%clk 0:01:14.4]} 29.
Qxb2 {[%clk 0:00:32.8]} 29... Bc6 {[%clk 0:01:15]} 30. Qb4 {[%clk 0:00:32.6]}
30... Qd8 {[%clk 0:01:13.5]} 31. Nd4 {[%clk 0:00:32]} 31... Bd5 {[%clk
0:01:12.8]} 32. h3 {[%clk 0:00:31.5]} 32... h6 {[%clk 0:01:12.6]} 33. Rc1 {[%clk
0:00:31]} 33... Qg5 {[%clk 0:01:10]} 34. Rc8+ {[%clk 0:00:24.4]} 34... Kh7
{[%clk 0:01:10]} 35. f3 {[%clk 0:00:24.4]} 35... Qxe5 {[%clk 0:01:03]} 36. Qb1+
{[%clk 0:00:23.2]} 36... g6 {[%clk 0:01:02.5]} 37. Nb5 {[%clk 0:00:22]} 37...
Bc6 {[%clk 0:00:52.8]} 38. Na7 {[%clk 0:00:17.1]} 38... Qe3+ {[%clk 0:00:49.6]}
39. Kh1 {[%clk 0:00:16.3]} 39... Qd4 {[%clk 0:00:41.1]} 40. Nxc6 {[%clk
0:00:15.4]} 40... bxc6 {[%clk 0:00:41.7]} 41. Rxc6 {[%clk 0:00:15.4]} 41... Qe3
{[%clk 0:00:40.7]} 42. Rb6 {[%clk 0:00:15.4]} 42... Qxa3 {[%clk 0:00:39.4]} 43.
Rb7 {[%clk 0:00:15.6]} 43... Qf8 {[%clk 0:00:29.3]} 44. Qb4 {[%clk 0:00:15.3]}
44... Qe8 {[%clk 0:00:28.2]} 45. Qe7 {[%clk 0:00:15]} 45... Qxe7 {[%clk
0:00:26.5]} 46. Rxe7 {[%clk 0:00:15.9]} 46... Kg7 {[%clk 0:00:27.2]} 47. Ra7
{[%clk 0:00:16.3]} 47... Kf6 {[%clk 0:00:27.9]} 48. Rxa4 {[%clk 0:00:16.5]}
48... Ke5 {[%clk 0:00:28.4]} 49. Kh2 {[%clk 0:00:16.9]} 49... g5 {[%clk
0:00:29.3]} 50. Kg3 {[%clk 0:00:17]} 50... h5 {[%clk 0:00:30.2]} 51. Ra5+ {[%clk
0:00:16.8]} 51... Kf6 {[%clk 0:00:30.8]} 52. h4 {[%clk 0:00:17.5]} 52... gxh4+
{[%clk 0:00:26.9]} 53. Kxh4 {[%clk 0:00:18.4]} 53... Kg6 {[%clk 0:00:27.1]} 54.
Rg5+ {[%clk 0:00:18.5]} 54... Kf6 {[%clk 0:00:27.5]} 55. Rxh5 {[%clk 0:00:19.4]}
55... Kg6 {[%clk 0:00:27.8]} 56. Rg5+ {[%clk 0:00:19.6]} 56... Kf6 {[%clk
0:00:28.3]} 57. Ra5 {[%clk 0:00:19.6]} 57... e5 {[%clk 0:00:29.2]} 58. g4 {[%clk
0:00:19.8]} 58... Kg6 {[%clk 0:00:28.3]} 59. Rxe5 {[%clk 0:00:19]} 59... f6
{[%clk 0:00:27.9]} 60. Rf5 {[%clk 0:00:18.9]} 1-0

[Event "*** Titled Tuesday Blitz"]
[Site "Chess.com"]
[Date "2021.04.20"]
[Round "5"]
[White "chessdiamant"]
[Black "dmitrijiIM"]
[Result "0-1"]
[WhiteElo "2333"]
[BlackElo "2540"]
[TimeControl "180+1"]
[EndTime "10:55:30 PDT"]
[Termination "dmitrijiIM won by checkmate"]

1. Nf3 {[%clk 0:02:59.1]} 1... Nf6 {[%clk 0:03:00.1]} 2. g3 {[%clk 0:02:57.2]}
2... g6 {[%clk 0:03:00.6]} 3. b3 {[%clk 0:02:55.7]} 3... Bg7 {[%clk 0:03:01.5]}
4. Bb2 {[%clk 0:02:55.4]} 4... O-O {[%clk 0:03:02.4]} 5. Bg2 {[%clk 0:02:54.6]}
5... d5 {[%clk 0:03:02.5]} 6. O-O {[%clk 0:02:51.4]} 6... c5 {[%clk 0:03:02.5]}
7. c4 {[%clk 0:02:49.9]} 7... d4 {[%clk 0:02:59.7]} 8. e3 {[%clk 0:02:49.4]}
8... Nc6 {[%clk 0:02:59.7]} 9. exd4 {[%clk 0:02:47.4]} 9... cxd4 {[%clk
0:03:00.6]} 10. Re1 {[%clk 0:02:43.9]} 10... Re8 {[%clk 0:02:57.1]} 11. Ne5
{[%clk 0:02:37.7]} 11... Nxe5 {[%clk 0:02:39.7]} 12. Rxe5 {[%clk 0:02:38.6]}
12... Nd7 {[%clk 0:02:40.6]} 13. Re1 {[%clk 0:02:35.8]} 13... e5 {[%clk
0:02:40.6]} 14. d3 {[%clk 0:02:34.2]} 14... a5 {[%clk 0:02:39.2]} 15. Nd2 {[%clk
0:02:31.5]} 15... Nc5 {[%clk 0:02:37]} 16. Qc2 {[%clk 0:02:28.3]} 16... Bf5
{[%clk 0:02:27.4]} 17. Ne4 {[%clk 0:02:27.3]} 17... Bxe4 {[%clk 0:02:24.2]} 18.
Bxe4 {[%clk 0:02:25.4]} 18... Nxe4 {[%clk 0:02:24.2]} 19. Rxe4 {[%clk
0:02:24.4]} 19... a4 {[%clk 0:02:16.7]} 20. Rae1 {[%clk 0:02:22]} 20... Qd7
{[%clk 0:02:07.4]} 21. c5 {[%clk 0:02:09.2]} 21... axb3 {[%clk 0:01:58.3]} 22.
axb3 {[%clk 0:02:08.1]} 22... Qd5 {[%clk 0:01:43.3]} 23. Bxd4 {[%clk 0:02:03.1]}
23... f5 {[%clk 0:01:36.9]} 24. R4e2 {[%clk 0:01:25.7]} 24... Qxd4 {[%clk
0:01:36]} 25. Kg2 {[%clk 0:00:43.4]} 25... Rac8 {[%clk 0:01:30.5]} 26. b4 {[%clk
0:00:35.6]} 26... Qxb4 {[%clk 0:01:25.9]} 27. Qa2+ {[%clk 0:00:32]} 27... Kh8
{[%clk 0:01:24.8]} 28. f4 {[%clk 0:00:26.6]} 28... e4 {[%clk 0:00:47.2]} 29.
dxe4 {[%clk 0:00:24.8]} 29... fxe4 {[%clk 0:00:46.4]} 30. Qf7 {[%clk 0:00:24.2]}
30... Qd4 {[%clk 0:00:20.6]} 31. Qxb7 {[%clk 0:00:22.2]} 31... e3 {[%clk
0:00:21.2]} 32. c6 {[%clk 0:00:21.2]} 32... Qd5+ {[%clk 0:00:19.3]} 33. Kg1
{[%clk 0:00:20.8]} 33... Qxc6 {[%clk 0:00:19.8]} 34. Qxc6 {[%clk 0:00:16.2]}
34... Rxc6 {[%clk 0:00:20.7]} 35. Kg2 {[%clk 0:00:17.1]} 35... Bd4 {[%clk
0:00:17.7]} 36. Kf3 {[%clk 0:00:16.6]} 36... Kg7 {[%clk 0:00:17.6]} 37. Rd1
{[%clk 0:00:16.3]} 37... Bb6 {[%clk 0:00:17.9]} 38. Rd7+ {[%clk 0:00:15.6]}
38... Kg8 {[%clk 0:00:16]} 39. Ra2 {[%clk 0:00:14.4]} 39... e2 {[%clk
0:00:13.1]} 40. Rxe2 {[%clk 0:00:13.9]} 40... Rc3+ {[%clk 0:00:11.7]} 41. Kg4
{[%clk 0:00:06.3]} 41... Rxe2 {[%clk 0:00:11.5]} 42. h4 {[%clk 0:00:07.2]} 42...
Rc5 {[%clk 0:00:10.4]} 43. Rb7 {[%clk 0:00:04.8]} 43... Re6 {[%clk 0:00:07.9]}
44. Kf3 {[%clk 0:00:03.9]} 44... h5 {[%clk 0:00:08]} 45. g4 {[%clk 0:00:03.1]}
45... Rc3+ {[%clk 0:00:08.3]} 46. Kg2 {[%clk 0:00:02.6]} 46... Re2+ {[%clk
0:00:08.6]} 47. Kf1 {[%clk 0:00:02.6]} 47... Rf2+ {[%clk 0:00:09.1]} 48. Ke1
{[%clk 0:00:02.6]} 48... Rc1# {[%clk 0:00:10]} 0-1

[Event "*** Titled Tuesday Blitz"]
[Site "Chess.com"]
[Date "2021.04.20"]
[Round "5"]
[White "GM_dmitrij"]
[Black "superchess02"]
[Result "1-0"]
[WhiteElo "2909"]
[BlackElo "2734"]
[TimeControl "180+1"]
[EndTime "10:55:31 PDT"]
[Termination "GM_dmitrij won by resignation"]

1. e4 {[%clk 0:03:00.9]} 1... c5 {[%clk 0:02:59.8]} 2. Nf3 {[%clk 0:03:01]} 2...
a6 {[%clk 0:02:59.5]} 3. c3 {[%clk 0:02:58.3]} 3... Nf6 {[%clk 0:02:58.1]} 4. e5
{[%clk 0:02:57.4]} 4... Nd5 {[%clk 0:02:58.4]} 5. d4 {[%clk 0:02:57.9]} 5... e6
{[%clk 0:02:58.6]} 6. Bd3 {[%clk 0:02:53.4]} 6... b5 {[%clk 0:02:51.7]} 7. O-O
{[%clk 0:02:52.9]} 7... Bb7 {[%clk 0:02:52.3]} 8. Nbd2 {[%clk 0:02:37.5]} 8...
d6 {[%clk 0:02:52]} 9. exd6 {[%clk 0:02:32.3]} 9... Bxd6 {[%clk 0:02:49.7]} 10.
Ne4 {[%clk 0:02:30.6]} 10... c4 {[%clk 0:02:45.6]} 11. Nxd6+ {[%clk 0:02:23.6]}
11... Qxd6 {[%clk 0:02:46.5]} 12. Bc2 {[%clk 0:02:24.1]} 12... Nd7 {[%clk
0:02:46.1]} 13. Bg5 {[%clk 0:02:09.5]} 13... h6 {[%clk 0:02:45.2]} 14. Bh4
{[%clk 0:02:08.9]} 14... g5 {[%clk 0:02:34.3]} 15. Bg3 {[%clk 0:02:08.7]} 15...
Nf4 {[%clk 0:02:35]} 16. Re1 {[%clk 0:02:04]} 16... Nf6 {[%clk 0:02:35.2]} 17.
Ne5 {[%clk 0:01:58.3]} 17... Qd5 {[%clk 0:01:42.5]} 18. f3 {[%clk 0:01:52.2]}
18... h5 {[%clk 0:01:39.3]} 19. Bxf4 {[%clk 0:01:50.6]} 19... gxf4 {[%clk
0:01:39.4]} 20. Qd2 {[%clk 0:01:50.5]} 20... Qd8 {[%clk 0:01:32.9]} 21. Qxf4
{[%clk 0:01:48.9]} 21... Qe7 {[%clk 0:01:33.6]} 22. Be4 {[%clk 0:01:15.8]} 22...
Nxe4 {[%clk 0:01:17.9]} 23. fxe4 {[%clk 0:01:16.7]} 23... Rg8 {[%clk 0:01:18.6]}
24. Rf1 {[%clk 0:01:04.5]} 24... f6 {[%clk 0:01:18.7]} 25. Qxf6 {[%clk
0:01:01.9]} 25... Bxe4 {[%clk 0:01:18.8]} 26. Qxe7+ {[%clk 0:00:59.7]} 26...
Kxe7 {[%clk 0:01:18.5]} 27. Rf7+ {[%clk 0:00:58.8]} 27... Ke8 {[%clk 0:01:18]}
28. g3 {[%clk 0:00:58.9]} 28... h4 {[%clk 0:01:18.3]} 29. Re1 {[%clk 0:00:56.7]}
29... Bd5 {[%clk 0:01:04.7]} 30. Re3 {[%clk 0:00:51.5]} 30... a5 {[%clk
0:00:54.2]} 31. Rh7 {[%clk 0:00:43.6]} 31... hxg3 {[%clk 0:00:54.5]} 32. Rxg3
{[%clk 0:00:43.5]} 32... Rxg3+ {[%clk 0:00:55.1]} 33. hxg3 {[%clk 0:00:44.3]}
33... Ra6 {[%clk 0:00:55.8]} 34. g4 {[%clk 0:00:36.9]} 34... b4 {[%clk
0:00:55.7]} 35. Rh8+ {[%clk 0:00:29.1]} 35... Ke7 {[%clk 0:00:55.7]} 36. Rb8
{[%clk 0:00:30]} 36... Kf6 {[%clk 0:00:51.3]} 37. Kf2 {[%clk 0:00:29.7]} 37...
Ra7 {[%clk 0:00:46.3]} 38. Kg3 {[%clk 0:00:27.6]} 38... bxc3 {[%clk 0:00:42.9]}
39. bxc3 {[%clk 0:00:28.5]} 39... Rh7 {[%clk 0:00:43]} 40. Rf8+ {[%clk
0:00:22.4]} 40... Ke7 {[%clk 0:00:41.9]} 41. Rf1 {[%clk 0:00:15]} 41... Be4
{[%clk 0:00:34.3]} 42. g5 {[%clk 0:00:11.4]} 42... Bf5 {[%clk 0:00:33.3]} 43.
Rf3 {[%clk 0:00:07.4]} 43... Rh1 {[%clk 0:00:30.1]} 44. Nxc4 {[%clk 0:00:05.8]}
44... a4 {[%clk 0:00:30.2]} 45. Kf4 {[%clk 0:00:03.8]} 45... Rh4+ {[%clk
0:00:29]} 46. Ke3 {[%clk 0:00:04.4]} 46... Rg4 {[%clk 0:00:28.7]} 47. Ne5 {[%clk
0:00:03.8]} 47... Rxg5 {[%clk 0:00:28.5]} 48. c4 {[%clk 0:00:04.5]} 48... Rg2
{[%clk 0:00:26.2]} 49. a3 {[%clk 0:00:04.9]} 49... Ra2 {[%clk 0:00:25.6]} 50.
Kf4 {[%clk 0:00:05.1]} 50... Bc2 {[%clk 0:00:25.1]} 51. Rc3 {[%clk 0:00:04.7]}
51... Bb3 {[%clk 0:00:25.4]} 52. c5 {[%clk 0:00:05.6]} 52... Rxa3 {[%clk
0:00:25.5]} 53. c6 {[%clk 0:00:06.1]} 53... Kd8 {[%clk 0:00:21.7]} 54. c7+
{[%clk 0:00:05.4]} 54... Kc8 {[%clk 0:00:22.6]} 55. Nf7 {[%clk 0:00:05.7]} 55...
Bc4 {[%clk 0:00:23.3]} 56. Rxa3 {[%clk 0:00:03.5]} 56... e5+ {[%clk 0:00:23.6]}
57. Nxe5 {[%clk 0:00:03.1]} 1-0

[Event "*** Titled Tuesday Blitz"]
[Site "Chess.com"]
[Date "2021.04.20"]
[Round "5"]
[White "Qvalda"]
[Black "Gusarov91"]
[Result "0-1"]
[WhiteElo "2448"]
[BlackElo "2642"]
[TimeControl "180+1"]
[EndTime "10:55:31 PDT"]
[Termination "Gusarov91 won on time"]

1. e4 {[%clk 0:03:00.9]} 1... c6 {[%clk 0:02:57.6]} 2. d4 {[%clk 0:02:59.9]}
2... d5 {[%clk 0:02:56.4]} 3. e5 {[%clk 0:03:00.2]} 3... Bf5 {[%clk 0:02:56.2]}
4. Nd2 {[%clk 0:03:00]} 4... e6 {[%clk 0:02:53.7]} 5. Nb3 {[%clk 0:03:00]} 5...
Nd7 {[%clk 0:02:51.8]} 6. Nf3 {[%clk 0:03:00.4]} 6... h6 {[%clk 0:02:51.6]} 7.
Be2 {[%clk 0:02:59.3]} 7... Ne7 {[%clk 0:02:51.4]} 8. O-O {[%clk 0:02:59.1]}
8... c5 {[%clk 0:02:49]} 9. Nxc5 {[%clk 0:02:47.9]} 9... Nxc5 {[%clk 0:02:48.7]}
10. dxc5 {[%clk 0:02:48.8]} 10... Nc6 {[%clk 0:02:49.4]} 11. Nd4 {[%clk
0:02:42.1]} 11... Nxd4 {[%clk 0:02:40.6]} 12. Qxd4 {[%clk 0:02:43]} 12... Bxc2
{[%clk 0:02:40.7]} 13. Bb5+ {[%clk 0:02:37.8]} 13... Ke7 {[%clk 0:02:40.7]} 14.
Qh4+ {[%clk 0:01:44.5]} 14... f6 {[%clk 0:02:39.1]} 15. b4 {[%clk 0:01:36.7]}
15... a6 {[%clk 0:02:32.9]} 16. Be2 {[%clk 0:01:24]} 16... Kd7 {[%clk
0:02:26.5]} 17. Qg3 {[%clk 0:01:10.2]} 17... Bf5 {[%clk 0:02:17.4]} 18. Bb2
{[%clk 0:01:08.8]} 18... h5 {[%clk 0:01:59.2]} 19. a4 {[%clk 0:01:04.1]} 19...
h4 {[%clk 0:01:59.1]} 20. Qe3 {[%clk 0:00:59.6]} 20... Be7 {[%clk 0:01:52.3]}
21. b5 {[%clk 0:00:57.5]} 21... Qc7 {[%clk 0:01:49.5]} 22. Rfc1 {[%clk 0:00:54]}
22... axb5 {[%clk 0:01:45.8]} 23. Bxb5+ {[%clk 0:00:53]} 23... Kd8 {[%clk
0:01:45.1]} 24. c6 {[%clk 0:00:52.4]} 24... b6 {[%clk 0:01:43.7]} 25. Bd4 {[%clk
0:00:49.2]} 25... Rb8 {[%clk 0:01:41.2]} 26. h3 {[%clk 0:00:47.2]} 26... Ke8
{[%clk 0:01:29.1]} 27. Re1 {[%clk 0:00:46.1]} 27... Kf7 {[%clk 0:01:27.9]} 28.
Rac1 {[%clk 0:00:31.2]} 28... Rh6 {[%clk 0:01:21.5]} 29. exf6 {[%clk 0:00:25.6]}
29... Bxf6 {[%clk 0:01:19.8]} 30. Bxf6 {[%clk 0:00:23.4]} 30... Rxf6 {[%clk
0:01:20]} 31. Bd3 {[%clk 0:00:21.3]} 31... Bxd3 {[%clk 0:01:15.6]} 32. Qxd3
{[%clk 0:00:22.2]} 32... Ra8 {[%clk 0:01:13.8]} 33. Qd4 {[%clk 0:00:21.9]} 33...
Rf4 {[%clk 0:01:11.2]} 34. Qd1 {[%clk 0:00:11.1]} 34... Rf5 {[%clk 0:01:04.4]}
35. Qe2 {[%clk 0:00:10]} 35... Re8 {[%clk 0:00:58.4]} 36. Qg4 {[%clk 0:00:09.9]}
36... g6 {[%clk 0:00:53.1]} 37. Qxh4 {[%clk 0:00:08.9]} 37... Kg7 {[%clk
0:00:53.6]} 38. Qd4+ {[%clk 0:00:08.3]} 38... Kf7 {[%clk 0:00:52.6]} 39. Re3
{[%clk 0:00:07.7]} 39... Rf4 {[%clk 0:00:48.1]} 40. Qd2 {[%clk 0:00:05.9]} 40...
Ra8 {[%clk 0:00:42.5]} 41. Qe2 {[%clk 0:00:05.5]} 41... Rf6 {[%clk 0:00:40.6]}
42. Rf3 {[%clk 0:00:05.4]} 42... Rxa4 {[%clk 0:00:38.1]} 43. Rxf6+ {[%clk
0:00:05.5]} 43... Kxf6 {[%clk 0:00:38.7]} 44. Qb2+ {[%clk 0:00:05.6]} 44... Kf7
{[%clk 0:00:38.2]} 45. Qc2 {[%clk 0:00:04.9]} 45... Rc4 {[%clk 0:00:36.9]} 46.
Qd2 {[%clk 0:00:04.6]} 46... Qxc6 {[%clk 0:00:36.4]} 47. Re1 {[%clk 0:00:01.2]}
47... Qd6 {[%clk 0:00:32.4]} 48. Qh6 {[%clk 0:00:01.4]} 48... Rc8 {[%clk
0:00:20.6]} 49. Qh7+ {[%clk 0:00:01.9]} 49... Kf6 {[%clk 0:00:21.2]} 50. Qh4+
{[%clk 0:00:02]} 50... Kg7 {[%clk 0:00:21.6]} 51. Qg5 {[%clk 0:00:01.6]} 51...
Re8 {[%clk 0:00:20.9]} 52. Rb1 {[%clk 0:00:01.6]} 52... e5 {[%clk 0:00:19.1]}
53. Ra1 {[%clk 0:00:01.3]} 53... Re7 {[%clk 0:00:19.2]} 0-1

[Event "*** Titled Tuesday Blitz"]
[Site "Chess.com"]
[Date "2021.04.20"]
[Round "5"]
[White "Aradhya2000"]
[Black "hansen"]
[Result "1-0"]
[WhiteElo "2615"]
[BlackElo "2807"]
[TimeControl "180+1"]
[EndTime "10:55:34 PDT"]
[Termination "Aradhya2000 won by resignation"]

1. d4 {[%clk 0:03:00.9]} 1... Nf6 {[%clk 0:02:59.6]} 2. Nf3 {[%clk 0:02:59.1]}
2... g6 {[%clk 0:02:59.5]} 3. g3 {[%clk 0:02:58.5]} 3... Bg7 {[%clk 0:03:00.1]}
4. Bg2 {[%clk 0:02:58.3]} 4... O-O {[%clk 0:03:01]} 5. c4 {[%clk 0:02:58.6]}
5... d5 {[%clk 0:03:00.9]} 6. cxd5 {[%clk 0:02:58.4]} 6... Nxd5 {[%clk
0:03:01.5]} 7. O-O {[%clk 0:02:58.8]} 7... Nb6 {[%clk 0:03:01.5]} 8. Bf4 {[%clk
0:02:57.9]} 8... Nc6 {[%clk 0:02:56.2]} 9. Nc3 {[%clk 0:02:57.9]} 9... Bg4
{[%clk 0:02:49.5]} 10. e3 {[%clk 0:02:57.2]} 10... e5 {[%clk 0:02:43.8]} 11.
dxe5 {[%clk 0:02:51.4]} 11... Nc4 {[%clk 0:02:36.4]} 12. Qb3 {[%clk 0:02:13.2]}
12... Bxf3 {[%clk 0:02:29.5]} 13. Qxc4 {[%clk 0:02:12.9]} 13... Bxg2 {[%clk
0:02:27.7]} 14. Kxg2 {[%clk 0:02:13.8]} 14... Nxe5 {[%clk 0:02:22.7]} 15. Qe4
{[%clk 0:02:09.7]} 15... Nd3 {[%clk 0:01:54.4]} 16. Rfd1 {[%clk 0:02:06.5]}
16... Nxf4+ {[%clk 0:01:54.3]} 17. Qxf4 {[%clk 0:02:06.9]} 17... Qf6 {[%clk
0:01:26.7]} 18. Qxf6 {[%clk 0:01:45]} 18... Bxf6 {[%clk 0:01:26.8]} 19. Rd7
{[%clk 0:01:45.2]} 19... Bxc3 {[%clk 0:01:19]} 20. bxc3 {[%clk 0:01:45.1]} 20...
Rac8 {[%clk 0:01:19.6]} 21. Rad1 {[%clk 0:01:31.5]} 21... Rfe8 {[%clk
0:01:17.8]} 22. R1d4 {[%clk 0:01:28.9]} 22... Kf8 {[%clk 0:01:17]} 23. Ra4
{[%clk 0:01:22.1]} 23... a6 {[%clk 0:01:14.2]} 24. Rb4 {[%clk 0:01:20.2]} 24...
b6 {[%clk 0:01:11.6]} 25. a4 {[%clk 0:01:07.8]} 25... Re7 {[%clk 0:01:10.6]} 26.
Rd5 {[%clk 0:01:07.4]} 26... Re6 {[%clk 0:01:07.3]} 27. Rbd4 {[%clk 0:01:01.9]}
27... Ke8 {[%clk 0:01:03.3]} 28. Kf3 {[%clk 0:01:00.9]} 28... h5 {[%clk
0:01:01.5]} 29. a5 {[%clk 0:00:55.8]} 29... Rc6 {[%clk 0:00:36.9]} 30. c4 {[%clk
0:00:50.6]} 30... Kf8 {[%clk 0:00:32.2]} 31. Rf4 {[%clk 0:00:41.6]} 31... Re8
{[%clk 0:00:30.9]} 32. h3 {[%clk 0:00:27]} 32... Ree6 {[%clk 0:00:24.6]} 33. g4
{[%clk 0:00:27.3]} 33... hxg4+ {[%clk 0:00:24.9]} 34. hxg4 {[%clk 0:00:28.2]}
34... Red6 {[%clk 0:00:25.4]} 35. axb6 {[%clk 0:00:21.6]} 35... cxb6 {[%clk
0:00:21.8]} 36. Re5 {[%clk 0:00:20.9]} 36... Rc5 {[%clk 0:00:16.4]} 37. Rxc5
{[%clk 0:00:15.1]} 37... bxc5 {[%clk 0:00:16.7]} 38. Re4 {[%clk 0:00:15.5]}
38... a5 {[%clk 0:00:16.3]} 39. Re5 {[%clk 0:00:15.7]} 39... Ra6 {[%clk
0:00:11.3]} 40. Rxc5 {[%clk 0:00:15.4]} 40... a4 {[%clk 0:00:12.1]} 41. Rb5
{[%clk 0:00:15.6]} 41... a3 {[%clk 0:00:12.7]} 42. Rb1 {[%clk 0:00:15.8]} 42...
a2 {[%clk 0:00:13.3]} 43. Ra1 {[%clk 0:00:16.4]} 43... Ke7 {[%clk 0:00:13.9]}
44. Ke4 {[%clk 0:00:17]} 44... Kd6 {[%clk 0:00:14.4]} 45. Kd4 {[%clk 0:00:17.2]}
45... Ra4 {[%clk 0:00:14.1]} 46. f4 {[%clk 0:00:17.3]} 46... f6 {[%clk
0:00:06.4]} 47. e4 {[%clk 0:00:17.3]} 47... Ke6 {[%clk 0:00:06.2]} 48. Kc3
{[%clk 0:00:16.4]} 48... Ra3+ {[%clk 0:00:03.1]} 49. Kb4 {[%clk 0:00:16.6]}
49... Re3 {[%clk 0:00:03.1]} 50. f5+ {[%clk 0:00:14.6]} 50... gxf5 {[%clk
0:00:02]} 51. exf5+ {[%clk 0:00:14.9]} 51... Kd6 {[%clk 0:00:02.2]} 52. Rxa2
{[%clk 0:00:14.7]} 52... Re4 {[%clk 0:00:02.4]} 53. Ra6+ {[%clk 0:00:14.4]}
53... Kc7 {[%clk 0:00:02.8]} 54. Rxf6 {[%clk 0:00:13.4]} 54... Rxg4 {[%clk
0:00:02.9]} 55. Kc5 {[%clk 0:00:13.7]} 55... Rd4 {[%clk 0:00:02.6]} 56. Kxd4
{[%clk 0:00:13.3]} 1-0